fUSD/lending_fUSD_20241209
["ID","MTS","AMOUNT","RATE_DAILY","PERIOD"]
[344792430,1733788310027,-354.44,0.000179,2]
[344792431,1733788310036,-354.44,0.000179,2]
[344792432,1733788310046,-354.44,0.000179,2]
[344792433,1733788310055,-354.44,0.000179,2]
[344792434,1733788310065,-354.44,0.000179,2]
[344792435,1733788310075,-354.44,0.000179,2]
[344792436,1733788310085,-354.44,0.000179,2]
[344792437,1733788310094,-354.44,0.000179,2]
[344792438,1733788310103,-354.44,0.000179,2]
[344792439,1733788310112,-354.44,0.000179,2]
[344792440,1733788310122,-354.44,0.000179,2]
[344792441,1733788310132,-3195.7445349,0.00018,2]
[344792442,1733788310141,-1130.96057634,0.00018,2]
[344792443,1733788310150,-2444.0,0.00018,2]
[344792444,1733788310160,-5611.79493864,0.00018,2]
[344792445,1733788310169,-1029.42208202,0.00018,2]
[344792446,1733788310179,-2500.0,0.00018082,2]
[344792447,1733788310189,-1691.71827467,0.000181,2]
[344792448,1733788310198,-1600.0,0.00018183,2]
[344792449,1733788310208,-320477.38813663,0.00018299,2]
[344792450,1733788310217,-17118.96572962,0.00018299,2]
[344792451,1733788310227,-974.74,0.00018321,2]
[344792452,1733788310236,-300.0,0.00018325,2]
[344792453,1733788310246,-150.0,0.00018325,2]
[344792454,1733788310256,-364.31,0.00018325,2]
[344792455,1733788310266,-300.0,0.00018325,2]
[344792456,1733788310276,-150.0,0.00018325,2]
[344792457,1733788310285,-364.31,0.00018325,2]
[344792458,1733788310295,-364.31,0.00018325,2]
[344792459,1733788310304,-150.0,0.00018325,2]
[344792460,1733788310315,-779.05,0.00018325,2]
[344792461,1733788310324,-661.03,0.00018325,2]
[344792462,1733788310334,-728.62,0.00018325,2]
[344792463,1733788310343,-1317.9,0.00018356,2]
[344792464,1733788310353,-1317.9,0.00018356,2]
[344792465,1733788310363,-1317.9,0.00018356,2]
[344792466,1733788310373,-1317.9,0.00018356,2]
[344792467,1733788310383,-1317.9,0.00018356,2]
[344792468,1733788310393,-1317.9,0.00018356,2]
[344792469,1733788310403,-1317.9,0.00018356,2]
[344792470,1733788310413,-1317.9,0.00018356,2]
[344792471,1733788310422,-1317.9,0.00018356,2]
[344792472,1733788310432,-1317.9,0.00018356,2]
[344792473,1733788310441,-1317.9,0.00018356,2]
[344792474,1733788310451,-1317.9,0.00018356,2]
[344792475,1733788310461,-1317.9,0.00018356,2]
[344792476,1733788310471,-1317.9,0.00018356,2]
[344792477,1733788310480,-1317.9,0.00018356,2]
[344792478,1733788310490,-1317.9,0.00018356,2]
[344792479,1733788310500,-1317.9,0.00018356,2]
[344792480,1733788310510,-1317.9,0.00018356,2]
[344792481,1733788310520,-1317.9,0.00018356,2]
[344792482,1733788310530,-1317.9,0.00018356,2]
[344792483,1733788310540,-1317.9,0.00018356,2]
[344792484,1733788310550,-1317.9,0.00018356,2]
[344792485,1733788310559,-1317.9,0.00018356,2]
[344792486,1733788310571,-1318.13274186,0.00018356,2]
[344792487,1733788310580,-974.74,0.00018412,2]
[344792488,1733788310590,-974.74,0.00018412,2]
[344792489,1733788310600,-974.74,0.00018412,2]
[344792490,1733788310613,-974.74,0.00018412,2]
[344792491,1733788310623,-1947.74,0.00018412,2]
[344792492,1733788310633,-2000.0,0.00018567,10]
[344792493,1733788310643,-207.0,0.000186,2]
[344792494,1733788310653,-150.0,0.00018799,2]
[344792495,1733788310662,-1600.0,0.00018832,2]
[344792496,1733788310671,-25475.83415149,0.000189,2]
[344792497,1733788310681,-155.0,0.00018952,30]
[344792498,1733788310691,-3999.99999899,0.00019,2]
[344792499,1733788310701,-13097.63502035,0.00019,2]
[344792500,1733788310711,-600.0,0.00019,2]
[344792501,1733788310720,-338.54076394,0.0001901,7]
[344792502,1733788310730,-15225.96970399,0.0001901,2]
[344792503,1733788310739,-500.0,0.0001907,2]
[344792504,1733788310749,-700.0,0.0001907,2]
[344792505,1733788310759,-2543.37863656,0.0001911,2]
[344792506,1733788310769,-974.74,0.00019143,2]
[344792507,1733788310779,-974.74,0.00019143,2]
[344792508,1733788310789,-974.74,0.00019143,2]
[344792509,1733788310799,-974.74,0.00019143,2]
[344792510,1733788310809,-974.74,0.00019143,2]
[344792511,1733788310820,-932.51,0.00019143,2]
[344792512,1733788310830,-870.68,0.00019147,2]
[344792513,1733788310839,-150.0,0.00019177,2]
[344792514,1733788310849,-1880.9,0.00019178,2]
[344792515,1733788310859,-1880.9,0.00019178,2]
[344792516,1733788310869,-1880.9,0.00019178,2]
[344792517,1733788310878,-1880.9,0.00019178,2]
[344792518,1733788310888,-1880.9,0.00019178,2]
[344792519,1733788310899,-1880.9,0.00019178,2]
[344792520,1733788310908,-1880.9,0.00019178,2]
[344792521,1733788310918,-1880.9,0.00019178,2]
[344792522,1733788310928,-1880.9,0.00019178,2]
[344792523,1733788310939,-1880.9,0.00019178,2]
[344792524,1733788310949,-1880.9,0.00019178,2]
[344792525,1733788310959,-1880.9,0.00019178,2]
[344792526,1733788310969,-1880.9,0.00019178,2]
[344792527,1733788310982,-1880.9,0.00019178,2]
[344792528,1733788310992,-1880.9,0.00019178,2]
[344792529,1733788311001,-1880.9,0.00019178,2]
[344792530,1733788311012,-1880.9,0.00019178,2]
[344792531,1733788311021,-1880.9,0.00019178,2]
[344792532,1733788311031,-1880.9,0.00019178,2]
[344792533,1733788311041,-1880.9,0.00019178,2]
[344792534,1733788311051,-1880.9,0.00019178,2]
[344792535,1733788311060,-1880.9,0.00019178,2]
[344792536,1733788311071,-1880.9,0.00019178,2]
[344792537,1733788311081,-1880.97124819,0.00019178,2]
[344792538,1733788311091,-2753.21,0.00019178,2]
[344792539,1733788311100,-1246.79,0.00019178,2]
[344792540,1733788311109,-150.0,0.00019178,2]
[344792541,1733788311119,-403199.64810409,0.000192,2]
[344792542,1733788311128,-1434.51,0.00019242,30]
[344792543,1733788311138,-8548.57459102,0.00019266,2]
[344792544,1733788311147,-5000.0,0.00019266,2]
[344792545,1733788311156,-5000.0,0.00019266,2]
[344792546,1733788311166,-5000.0,0.00019266,2]
[344792547,1733788311175,-150.0,0.00019314,2]
[344792548,1733788311184,-768.51,0.00019347,2]
[344792549,1733788311193,-5178.63540912,0.00019386,2]
[344792550,1733788311203,-5000.0,0.00019386,2]
[344792551,1733788311212,-150.0,0.00019451,2]
[344792552,1733788311223,-1600.0,0.00019481,2]
[344792553,1733788311232,-150.0,0.00019588,2]
[344792554,1733788311242,-103257.4724679,0.0001961,2]
[344792555,1733788311481,-207.0,0.0001962,2]
[344792556,1733788311516,-204.0,0.0001964,2]
[344792557,1733788311527,-188.55,0.00019658,2]
[344792558,1733788311538,-1894.0,0.00019677,2]
[344792559,1733788311548,-817.0,0.00019677,2]
[344792560,1733788311558,-3762.0,0.00019677,2]
[344792561,1733788311570,-1253.0,0.00019677,2]
[344792562,1733788311581,-3572.813,0.00019677,2]
[344792563,1733788311592,-973.0,0.00019677,2]
[344792564,1733788311602,-535.0,0.00019677,2]
[344792565,1733788311616,-1238.65,0.00019688,2]
[344792566,1733788311626,-150.0,0.00019725,2]
[344792567,1733788311636,-150.0,0.00019726,2]
[344792568,1733788311647,-2500.0,0.00019825,2]
[344792569,1733788311656,-150.0,0.00019855,2]
[344792570,1733788311666,-150.0,0.00019862,2]
[344792571,1733788311675,-4669.54416493,0.000199,3]
[344792572,1733788311686,-974.56,0.00019969,2]
[344792573,1733788311696,-1949.48,0.00019969,2]
[344792574,1733788311706,-94737.3477675,0.00019999,2]
[344792575,1733788311716,-150.0,0.00019999,2]
[344792576,1733788311725,-2916.0309815,0.0002,7]
[344792577,1733788311735,-6500.0,0.0002,2]
[344792578,1733788311745,-297.00802875,0.0002,2]
[344792579,1733788311754,-70388.43094012,0.0002,2]
[344792580,1733788311764,-3815.95995142,0.0002,2]
[344792581,1733788311774,-200.0,0.0002,5]
[344792582,1733788311783,-3950.0,0.0002,2]
[344792583,1733788311793,-1234.54510343,0.0002,2]
[344792584,1733788311803,-2048.95319359,0.0002,2]
[344792585,1733788311813,-810.77440659,0.0002,2]
[344792586,1733788311823,-40000.0,0.0002,8]
[344792587,1733788311833,-32215.82,0.0002,6]
[344792588,1733788311842,-1386.71321845,0.0002,5]
[344792589,1733788311852,-349285.31163742,0.0002,4]
[344792590,1733788311861,-2767.25536175,0.0002,7]
[344792591,1733788311871,-469.87113412,0.0002,10]
[344792592,1733788311880,-1013.0,0.0002,6]
[344792593,1733788311890,-4698693.20473807,0.0002,2]
[344792594,1733788311899,-224.49,0.0002,7]
[344792595,1733788311909,-5073.42490408,0.0002,2]
[344792596,1733788311919,-6517.90365087,0.0002,2]
[344792597,1733788311928,-20000.0,0.0002,2]
[344792598,1733788311938,-2075.0,0.0002,2]
[344792599,1733788311948,-2000.0,0.0002,2]
[344792600,1733788311958,-1997.9435419,0.0002,2]
[344792601,1733788311967,-400.90915136,0.0002,2]
[344792602,1733788311977,-240.54549082,0.0002,2]
[344792603,1733788311987,-160.36366054,0.0002,2]
[344792604,1733788311996,-151.0,0.0002,2]
[344792605,1733788312006,-151.0,0.0002,2]
[344792606,1733788312016,-151.0,0.0002,2]
[344792607,1733788312026,-151.0,0.0002,2]
[344792608,1733788312036,-151.0,0.0002,2]
[344792609,1733788312046,-151.0,0.0002,2]
[344792610,1733788312055,-151.0,0.0002,2]
[344792611,1733788312065,-151.0,0.0002,2]
[344792612,1733788312075,-151.0,0.0002,2]
[344792613,1733788312084,-151.0,0.0002,2]
[344792614,1733788312094,-151.0,0.0002,2]
[344792615,1733788312108,-151.0,0.0002,2]
[344792616,1733788312118,-151.0,0.0002,2]
[344792617,1733788312127,-151.0,0.0002,2]
[344792618,1733788312137,-151.0,0.0002,2]
[344792619,1733788312147,-519.788415,0.0002,2]
[344792620,1733788312158,-519.788415,0.0002,2]
[344792621,1733788312168,-151.0,0.0002,2]
[344792622,1733788312179,-151.0,0.0002,2]
[344792623,1733788312189,-151.0,0.0002,2]
[344792624,1733788312199,-151.567109,0.0002,2]
[344792625,1733788312209,-151.0,0.0002,2]
[344792626,1733788312220,-151.0,0.0002,2]
[344792627,1733788312230,-151.0,0.0002,2]
[344792628,1733788312241,-151.0,0.0002,2]
[344792629,1733788312252,-173.309007,0.0002,2]
[344792630,1733788312262,-151.0,0.0002,2]
[344792631,1733788312273,-154.337464,0.0002,2]
[344792632,1733788312283,-151.0,0.0002,2]
[344792633,1733788312293,-151.0,0.0002,2]
[344792634,1733788312303,-151.0,0.0002,2]
[344792635,1733788312317,-151.0,0.0002,2]
[344792636,1733788312327,-151.0,0.0002,2]
[344792637,1733788312337,-151.0,0.0002,2]
[344792638,1733788312347,-151.0,0.0002,2]
[344792639,1733788312358,-151.0,0.0002,2]
[344792640,1733788312368,-151.0,0.0002,2]
[344792641,1733788312379,-159.487133,0.0002,2]
[344792642,1733788312388,-175.0,0.0002,2]
[344792643,1733788312399,-151.0,0.0002,2]
[344792644,1733788312409,-151.0,0.0002,2]
[344792645,1733788312419,-220.077492,0.0002,2]
[344792646,1733788312429,-220.077492,0.0002,2]
[344792647,1733788312439,-151.0,0.0002,2]
[344792648,1733788312449,-220.077492,0.0002,2]
[344792649,1733788312459,-473.987952,0.0002,2]
[344792650,1733788312469,-220.077492,0.0002,2]
[344792651,1733788312480,-473.987952,0.0002,2]
[344792652,1733788312489,-473.987952,0.0002,2]
[344792653,1733788312499,-473.987952,0.0002,2]
[344792654,1733788312510,-151.0,0.0002,2]
[344792655,1733788312520,-151.0,0.0002,2]
[344792656,1733788312530,-153.255492,0.0002,2]
[344792657,1733788312540,-721.54923,0.0002,2]
[344792658,1733788312550,-721.54923,0.0002,2]
[344792659,1733788312559,-721.54923,0.0002,2]
[344792660,1733788312572,-721.54923,0.0002,2]
[344792661,1733788312582,-151.0,0.0002,2]
[344792662,1733788312592,-151.0,0.0002,2]
[344792663,1733788312602,-151.0,0.0002,2]
[344792664,1733788312616,-247.24,0.0002,2]
[344792665,1733788312627,-3758.858883,0.0002001,2]
[344792666,1733788312637,-692.88,0.00020091,2]
[344792667,1733788312647,-1600.0,0.00020129,2]
[344792668,1733788312659,-150.0,0.00020136,2]
[344792669,1733788312672,-150.0,0.00020273,2]
[344792670,1733788312682,-500.0,0.00020384,2]
[344792671,1733788312693,-162.23802384,0.00020393,2]
[344792672,1733788312703,-150.0,0.0002041,2]
[344792673,1733788312712,-150.0,0.00020547,2]
[344792674,1733788312722,-178.67,0.00020548,2]
[344792675,1733788312732,-5253.07,0.00020548,2]
[344792676,1733788312741,-1084.44398082,0.0002058,2]
[344792677,1733788312751,-1074.0466179,0.0002058,2]
[344792678,1733788312761,-1051.63590505,0.0002058,2]
[344792679,1733788312771,-207.0,0.0002063,2]
[344792680,1733788312781,-398.0,0.00020642,2]
[344792681,1733788312791,-204.0,0.0002065,2]
[344792682,1733788312802,-150.0,0.00020684,2]
[344792683,1733788312811,-9818.92,0.000208,7]
[344792684,1733788312825,-155.0,0.00020808,30]
[344792685,1733788312835,-150.0,0.00020821,2]
[344792686,1733788312844,-150.0,0.00020958,2]
[344792687,1733788312854,-1140.41180548,0.00021,2]
[344792688,1733788312864,-188.1744691,0.00021,2]
[344792689,1733788312874,-3600.0,0.00021,22]
[344792690,1733788312884,-3000.0,0.00021,2]
[344792691,1733788312894,-3000.0,0.00021,2]
[344792692,1733788312903,-3000.0,0.00021,2]
[344792693,1733788312914,-3000.0,0.00021,2]
[344792694,1733788312924,-2894.83,0.00021,2]
[344792695,1733788312934,-100000.0,0.00021,3]
[344792696,1733788312944,-409.48,0.00021,2]
[344792697,1733788312953,-5810.04,0.00021,2]
[344792698,1733788312963,-504.81773052,0.00021,5]
[344792699,1733788312973,-650.0,0.00021,2]
[344792700,1733788312983,-30000.0,0.00021,2]
[344792701,1733788312993,-30000.0,0.00021,2]
[344792702,1733788313002,-30000.0,0.00021,2]
[344792703,1733788313012,-30000.0,0.00021,2]
[344792704,1733788313022,-30000.0,0.00021,2]
[344792705,1733788313032,-30000.0,0.00021,2]
[344792706,1733788313041,-30000.0,0.00021,2]
[344792707,1733788313051,-30000.0,0.00021,2]
[344792708,1733788313060,-30000.0,0.00021,2]
[344792709,1733788313073,-30000.0,0.00021,2]
[344792710,1733788313083,-30000.0,0.00021,2]
[344792711,1733788313093,-30000.0,0.00021,2]
[344792712,1733788313103,-30000.0,0.00021,2]
[344792713,1733788313112,-12500.69823866,0.00021,2]
[344792714,1733788313123,-3000.0,0.00021,2]
[344792715,1733788313132,-150.0,0.00021095,2]
[344792716,1733788313142,-150.0,0.00021232,2]
[344792717,1733788313152,-172.17639745,0.00021369,2]
[344792718,1733788313162,-1101.32,0.00021369,2]
[344792719,1733788313171,-1101.32,0.00021369,2]
[344792720,1733788313181,-1101.32,0.00021369,2]
[344792721,1733788313191,-1101.32,0.00021369,2]
[344792722,1733788313201,-1101.32,0.00021369,2]
[344792723,1733788313211,-1101.32,0.00021369,2]
[344792724,1733788313221,-1101.32,0.00021369,2]
[344792725,1733788313231,-1101.32,0.00021369,2]
[344792726,1733788313241,-1101.32,0.00021369,2]
[344792727,1733788313251,-1101.32,0.00021369,2]
[344792728,1733788313262,-1101.32,0.00021369,2]
[344792729,1733788313271,-1101.32,0.00021369,2]
[344792730,1733788313282,-1101.32,0.00021369,2]
[344792731,1733788313291,-1101.32,0.00021369,2]
[344792732,1733788313311,-1101.32,0.00021369,2]
[344792733,1733788313325,-1101.32,0.00021369,2]
[344792734,1733788313336,-1101.32,0.00021369,2]
[344792735,1733788313346,-1101.32,0.00021369,2]
[344792736,1733788313357,-1101.32,0.00021369,2]
[344792737,1733788313367,-1101.32,0.00021369,2]
[344792738,1733788313377,-1101.32,0.00021369,2]
[344792739,1733788313386,-1101.32,0.00021369,2]
[344792740,1733788313395,-1101.32,0.00021369,2]
[344792741,1733788313405,-1101.37259564,0.00021369,2]
[344792742,1733788313415,-5010.84,0.0002137,2]
[344792743,1733788313426,-300.0,0.00021401,2]
[344792744,1733788313436,-300.0,0.00021401,2]
[344792745,1733788313446,-150.0,0.00021401,2]
[344792746,1733788313455,-727.63,0.00021401,2]
[344792747,1733788313465,-2000.0,0.00021478,31]
[344792748,1733788313474,-184.090138,0.00021479,2]
[344792749,1733788313484,-170.481749,0.00021479,2]
[344792750,1733788313493,-540.386101,0.00021479,2]
[344792751,1733788313503,-4484.79779589,0.0002152,2]
[344792752,1733788313512,-207.0,0.0002164,2]
[344792753,1733788313522,-203.0,0.0002164,2]
[344792754,1733788313532,-202.0,0.0002164,2]
[344792755,1733788313542,-204.0,0.0002166,2]
[344792756,1733788313551,-7221.82725136,0.000217,2]
[344792757,1733788313562,-152.0,0.00021742,3]
[344792758,1733788313575,-540.386101,0.00021747,2]
[344792759,1733788313584,-1434.51,0.00021826,30]
[344792760,1733788313594,-200.0,0.000219,2]
[344792761,1733788313603,-1393.55,0.00021917,2]
[344792762,1733788313616,-1393.55,0.00021917,2]
[344792763,1733788313625,-1393.55,0.00021917,2]
[344792764,1733788313635,-1393.55,0.00021917,2]
[344792765,1733788313644,-1393.55,0.00021917,2]
[344792766,1733788313655,-1393.55,0.00021917,2]
[344792767,1733788313665,-1393.55,0.00021917,2]
[344792768,1733788313674,-1393.55,0.00021917,2]
[344792769,1733788313684,-1393.55,0.00021917,2]
[344792770,1733788313694,-1393.55,0.00021917,2]
[344792771,1733788313704,-1393.55,0.00021917,2]
[344792772,1733788313714,-1393.55,0.00021917,2]
[344792773,1733788313723,-1393.55,0.00021917,2]
[344792774,1733788313733,-1393.55,0.00021917,2]
[344792775,1733788313742,-1393.55,0.00021917,2]
[344792776,1733788313752,-1393.55,0.00021917,2]
[344792777,1733788313762,-1393.55,0.00021917,2]
[344792778,1733788313771,-1393.55,0.00021917,2]
[344792779,1733788313781,-1393.55,0.00021917,2]
[344792780,1733788313791,-1393.55,0.00021917,2]
[344792781,1733788313800,-1393.55,0.00021917,2]
[344792782,1733788313810,-1393.55,0.00021917,2]
[344792783,1733788313821,-1393.55,0.00021917,2]
[344792784,1733788313830,-1393.75802271,0.00021917,2]
[344792785,1733788313840,-500.0,0.00021917,2]
[344792786,1733788313850,-500.0,0.00021917,2]
[344792787,1733788313859,-377.53602092,0.00021917,2]
[344792788,1733788313869,-500.0,0.00021917,2]
[344792789,1733788313878,-500.0,0.00021917,2]
[344792790,1733788313888,-500.0,0.00021917,2]
[344792791,1733788313898,-500.0,0.00021917,2]
[344792792,1733788313908,-500.0,0.00021917,2]
[344792793,1733788313918,-500.0,0.00021917,2]
[344792794,1733788313928,-500.0,0.00021917,2]
[344792795,1733788313937,-500.0,0.00021917,2]
[344792796,1733788313947,-350.41102986,0.00021917,2]
[344792797,1733788313957,-445.52312,0.00021918,2]
[344792798,1733788313966,-39704.63,0.00021918,2]
[344792799,1733788314074,-1238.65,0.00021952,2]
[344792800,1733788314084,-100000.0,0.00022,4]
[344792801,1733788314094,-500.0,0.00022,2]
[344792802,1733788314103,-500.0,0.00022,2]
[344792803,1733788314112,-500.0,0.00022,2]
[344792804,1733788314121,-500.0,0.00022,2]
[344792805,1733788314131,-500.0,0.00022,2]
[344792806,1733788314140,-500.0,0.00022,2]
[344792807,1733788314149,-11482.07497005,0.00022,2]
[344792808,1733788314158,-244.92690185,0.00022,2]
[344792809,1733788314167,-754.01357266,0.00022,7]
[344792810,1733788314176,-7995.34802317,0.00022,15]
[344792811,1733788314186,-3600.0,0.00022,23]
[344792812,1733788314195,-60000.0,0.00022,10]
[344792813,1733788314203,-17013.78298389,0.00022,2]
[344792814,1733788314213,-300.89026013,0.00022,5]
[344792815,1733788314221,-1463.5756693,0.00022,5]
[344792816,1733788314231,-78458.84187009,0.00022,2]
[344792817,1733788314240,-13119.9,0.00022,3]
[344792818,1733788314250,-540.386101,0.00022016,2]
[344792819,1733788314259,-229.53699072,0.0002211,2]
[344792820,1733788314269,-435.34,0.00022223,2]
[344792821,1733788314278,-540.386101,0.00022284,2]
[344792822,1733788314287,-152.0,0.00022295,4]
[344792823,1733788314296,-2900.0,0.000225,15]
[344792824,1733788314306,-33870.25724458,0.000225,2]
[344792825,1733788314317,-2559.80001266,0.000225,2]
[344792826,1733788314328,-1000.0,0.000225,10]
[344792827,1733788314337,-10275.23401262,0.000225,5]
[344792828,1733788314346,-540.386101,0.00022553,2]
[344792829,1733788314356,-188.55,0.00022603,2]
[344792830,1733788314365,-207.0,0.0002266,2]
[344792831,1733788314375,-203.0,0.0002266,2]
[344792832,1733788314385,-202.0,0.0002266,2]
[344792833,1733788314394,-155.0,0.00022664,30]
[344792834,1733788314404,-204.0,0.0002267,2]
[344792835,1733788314414,-1894.0,0.00022677,2]
[344792836,1733788314423,-812.0,0.00022677,2]
[344792837,1733788314433,-3762.0,0.00022677,2]
[344792838,1733788314442,-1253.0,0.00022677,2]
[344792839,1733788314452,-535.0,0.00022677,2]
[344792840,1733788314461,-310226.43716903,0.000228,14]
[344792841,1733788314471,-52685.66215939,0.000228,2]
[344792842,1733788314480,-152.0,0.00022848,5]
[344792843,1733788314489,-2000.0,0.000229,2]
[344792844,1733788314498,-2000.0,0.000229,2]
[344792845,1733788314507,-2000.0,0.000229,2]
[344792846,1733788314516,-2000.0,0.000229,2]
[344792847,1733788314526,-2000.0,0.000229,2]
[344792848,1733788314536,-2000.0,0.000229,2]
[344792849,1733788314546,-2000.0,0.000229,2]
[344792850,1733788314555,-2000.0,0.000229,2]
[344792851,1733788314564,-2000.0,0.000229,2]
[344792852,1733788314581,-2000.0,0.000229,2]
[344792853,1733788314591,-5800.0,0.00022924,2]
[344792854,1733788314600,-5800.0,0.00022932,2]
[344792855,1733788314613,-5800.0,0.00022941,2]
[344792856,1733788314622,-5800.0,0.00022949,2]
[344792857,1733788314631,-5800.0,0.00022958,2]
[344792858,1733788314641,-5800.0,0.00022966,2]
[344792859,1733788314651,-5800.0,0.00022975,2]
[344792860,1733788314659,-5800.0,0.00022983,2]
[344792861,1733788314669,-5800.0,0.00022983,2]
[344792862,1733788314679,-500.0,0.00022991,14]
[344792863,1733788314688,-500.0,0.00022991,14]
[344792864,1733788314698,-500.0,0.00022991,14]
[344792865,1733788314707,-5800.0,0.00022992,2]
[344792866,1733788314716,-5800.0,0.00022992,2]
[344792867,1733788314726,-3024.88865783,0.00022999,2]
[344792868,1733788314735,-3182.45977429,0.00022999,2]
[344792869,1733788314744,-3600.0,0.00023,24]
[344792870,1733788314754,-500.0,0.00023,2]
[344792871,1733788314763,-500.0,0.00023,2]
[344792872,1733788314773,-500.0,0.00023,2]
[344792873,1733788314783,-505.425,0.00023,2]
[344792874,1733788314792,-40000.00000099,0.00023,10]
[344792875,1733788314801,-100000.0,0.00023,5]
[344792876,1733788314811,-500.0,0.00023,2]
[344792877,1733788314829,-762.18,0.00023,2]
[344792878,1733788314843,-500.0,0.00023,14]
[344792879,1733788314853,-500.0,0.00023,14]
[344792880,1733788314862,-500.0,0.00023,14]
[344792881,1733788314872,-500.0,0.00023,14]
[344792882,1733788314882,-500.0,0.00023,14]
[344792883,1733788314891,-500.0,0.00023,14]
[344792884,1733788314901,-500.0,0.00023,14]
[344792885,1733788314911,-5800.0,0.00023,2]
[344792886,1733788314920,-5800.0,0.00023,2]
[344792887,1733788314930,-700.0,0.00023,2]
[344792888,1733788314939,-509.96017436,0.00023,60]
[344792889,1733788314949,-267.13695007,0.0002301,2]
[344792890,1733788314959,-49811.85523684,0.000232,2]
[344792891,1733788314969,-567.14035783,0.0002322,2]
[344792892,1733788314979,-1500.0,0.00023287,2]
[344792893,1733788314988,-1500.0,0.00023287,2]
[344792894,1733788314996,-1500.0,0.00023287,2]
[344792895,1733788315005,-228.56346349,0.00023287,2]
[344792896,1733788315015,-692.88,0.00023288,2]
[344792897,1733788315024,-300.0,0.000233,2]
[344792898,1733788315034,-641.53189908,0.00023379,2]
[344792899,1733788315043,-152.0,0.00023401,6]
[344792900,1733788315052,-1000.0,0.000235,10]
[344792901,1733788315062,-62355.28616299,0.000236,7]
[344792902,1733788315073,-716879.25739403,0.0002361,7]
[344792903,1733788315082,-207.0,0.0002367,2]
[344792904,1733788315091,-203.0,0.0002367,2]
[344792905,1733788315101,-202.0,0.0002367,2]
[344792906,1733788315110,-204.0,0.0002368,2]
[344792907,1733788315120,-3000.0,0.000237,2]
[344792908,1733788315130,-335304.0,0.00023922,2]
[344792909,1733788315139,-152.0,0.00023954,7]
[344792910,1733788315148,-100000.0,0.00024,3]
[344792911,1733788315158,-7662.07637734,0.00024,2]
[344792912,1733788315167,-974.49075715,0.00024,2]
[344792913,1733788315177,-3758.0,0.00024,2]
[344792914,1733788315186,-16376.50154561,0.00024,2]
[344792915,1733788315195,-3600.0,0.00024,25]
[344792916,1733788315205,-6503.01252404,0.00024,2]
[344792917,1733788315214,-100000.0,0.00024,6]
[344792918,1733788315224,-500.0,0.00024,2]
[344792919,1733788315233,-361417.52524616,0.00024,2]
[344792920,1733788315243,-2000.0,0.00024011,120]
[344792921,1733788315252,-777.57907235,0.0002402,2]
[344792922,1733788315261,-5000.0,0.00024023,2]
[344792923,1733788315271,-5000.0,0.00024054,2]
[344792924,1733788315282,-5000.0,0.00024075,2]
[344792925,1733788315291,-5000.0,0.00024084,2]
[344792926,1733788315301,-768.51,0.00024117,2]
[344792927,1733788315311,-435.74,0.00024117,2]
[344792928,1733788315322,-768.51,0.00024117,2]
[344792929,1733788315332,-435.74,0.00024117,2]